Cogmind - Beta 15 @@@ ROGUE MODE // 2025.05.19 @ 03:19:14 // Winter2019/RPGLIKE Player: Toaster Result: Destroyed by G-67 Veteran with Plasma Rifle Performance ------------- Evolutions (6) 3000 Regions Visited (12) 2400 Robots Destroyed (328) 1640 Value Destroyed (16044) 16044 Prototype IDs (28) 560 Alien Tech Used (1) 200 Bonus (8637) 8637 TOTAL SCORE: 32481 Bonus ------- Triggered High Security 1000 High Alert Combat Kills 6189 Follower Combat Kills 2007 Friendly Fire -559 Cogmind --------- Core Integrity 0/1650 Matter 350/350 Energy 259/1590 System Corruption 13% Temperature Critical (721) Movement Hovering (208) Ox1 Location -4/Cetus Parts ------- > --- POWER (4) -------- Hybrid Fission Core Heavy Antimatter Reactor Quantum Reactor Multi-Neutrino Core > --- PROPULSION (5) --- Hovering Combat-Armored Exoskeleton > --- UTILITY (9) ------ Armored Scrap Engine Advanced Cryofiber Web Advanced Signal Interpreter Improved Weapon Cycler Improved Force Field Long-range Tractor Beam > --- WEAPON (6) ------- Cld. Thermal Penetrator Construct/C EM Gauss Construct/C Hvy. Ballistic HERF Construct/C > --- INVENTORY (1) ---- Improved Medium Armor Plating Peak State ------------ > --- POWER ------------ Hybrid Fission Core Heavy Antimatter Reactor Quantum Reactor Multi-Neutrino Core > --- PROPULSION ------- Hovering Combat-Armored Exoskeleton > --- UTILITY ---------- Armored Scrap Engine Advanced Cryofiber Web Advanced Signal Interpreter Improved Weapon Cycler Makeshift Ablative Armor Makeshift Ablative Armor Improved Force Field Long-range Tractor Beam > --- WEAPON ----------- Cld. Thermal Penetrator Construct/C EM Gauss Construct/C Hvy. Ballistic HERF Construct/C > --- INVENTORY -------- Improved Medium Armor Plating [Rating: 147] Favorites ----------- Power Hybrid Fission Core Engine Heavy Ion Engine Power Core Hybrid Fission Core Reactor Heavy Antimatter Reactor Propulsion Constructs Leg Aluminum Leg Wheel Subdweller Monowheel Hover Unit Constructs Flight Unit Cooled Nuclear Pulse Thruster Utility Armored Scrap Engine Device Armored Scrap Engine Processor Advanced Signal Interpreter Protection Makeshift Ablative Armor Weapon Beamcaster Energy Gun Beamcaster Energy Cannon Beam Cannon Ballistic Gun Hypervelocity Gauss Rifle Ballistic Cannon Constructs Build | -11 -10 -10 -8 -6 -5 -5 -5 -5 -4 -4 -4 -4 ------- Run | Yrd Mat Sub Rec Fac Fac Upp Upp Zhi Pro Fac Ext Cet Slots Evolved 20 | 3 1 . 2 6 3 1 . . 1 2 1 . Power 3 | . . . . 1 1 . . . . 1 . . Propulsion 4 | 1 . . 1 1 1 . . . . . . . Utility 8 | . 1 . 1 3 1 . . . 1 1 . . Weapon 5 | 2 . . . 1 . 1 . . . . 1 . Parts Attached 74 | 6 9 18 10 9 8 1 3 2 3 4 . 1 Power 9 | 1 3 . 1 1 1 . . 1 . . . 1 Engine 6 | 1 3 . 1 . 1 . . . . . . . Core 1 | . . . . 1 . . . . . . . . Reactor 2 | . . . . . . . . 1 . . . 1 Propulsion 16 | 2 . 8 5 . . . . 1 . . . . Treads . | . . . . . . . . . . . . . Leg 4 | 2 . . 2 . . . . . . . . . Wheel 11 | . . 8 3 . . . . . . . . . Hover . | . . . . . . . . . . . . . Flight 1 | . . . . . . . . 1 . . . . Utility 31 | . 2 6 3 5 6 1 2 . 2 4 . . Device 23 | . 2 4 2 4 5 1 1 . . 4 . . Storage . | . . . . . . . . . . . . . Processor 2 | . . . . . 1 . 1 . . . . . Hackware . | . . . . . . . . . . . . . Protection 6 | . . 2 1 1 . . . . 2 . . . Artifact . | . . . . . . . . . . . . . Weapon 18 | 3 4 4 1 3 1 . 1 . 1 . . . Energy Gun 7 | 2 1 2 . 2 . . . . . . . . Energy Cannon 2 | . 1 . . 1 . . . . . . . . Ballistic Gun 6 | 1 2 2 . . . . 1 . . . . . Ballistic Cannon 3 | . . . 1 . 1 . . . 1 . . . Launcher . | . . . . . . . . . . . . . Special Weapon . | . . . . . . . . . . . . . Impact Weapon . | . . . . . . . . . . . . . Slashing Weapon . | . . . . . . . . . . . . . Piercing Weapon . | . . . . . . . . . . . . . Special Melee Weapon . | . . . . . . . . . . . . . Unidentified Prototypes 6 | . 1 . 1 1 . . . 3 . . . . Parts Lost 4 | . 1 1 . 1 . . . . . . . 1 Power 1 | . 1 . . . . . . . . . . . Propulsion . | . . . . . . . . . . . . . Utility 3 | . . 1 . 1 . . . . . . . 1 Weapon . | . . . . . . . . . . . . . Highest Loss Streak 1 | . 1 1 . 1 . . . . . . . 1 To Critical Strikes . | . . . . . . . . . . . . . Average Backups . | . . . . . . 1 . . . . . 1 Power . | . . . . . . . . . . . . . Propulsion . | . . . . . . . . . . . . . Utility . | . . . . . . 1 . . . . . 1 Weapon . | . . . . . . . . . . . . . Tool/Special . | . . . . . . . . . . . . . Unused Backups 4 | . . 1 2 . . . . . . . . 1 Power . | . . . . . . . . . . . . . Propulsion 2 | . . . 2 . . . . . . . . . Utility 1 | . . . . . . . . . . . . 1 Weapon . | . . . . . . . . . . . . . Tool/Special 1 | . . 1 . . . . . . . . . . Average Slot Usage (%) 76 | . 92 95 85 59 66 65 66 69 70 66 63 63 Engine 6 | . 12 12 10 7 4 7 5 2 . . . . Core 4 | . . . . 3 7 7 10 10 9 8 8 8 Reactor 1 | . . . . . . . . 2 4 4 4 5 Treads 2 | . . . . 4 5 5 5 5 4 4 2 . Leg 2 | . 27 1 3 . . . . . . . . . Wheel 7 | . . 20 21 2 . . . . . . . . Device 19 | . 10 15 16 20 29 30 23 24 19 20 20 20 Processor 1 | . . . . . . . 4 5 4 4 4 4 Protection 4 | . . 7 3 1 . . . . 7 8 8 7 Energy Gun 11 | . 20 30 19 7 . . . . . . . . Energy Cannon 3 | . 8 2 . 3 8 5 5 5 1 1 2 . Ballistic Gun 3 | . 11 3 2 . 5 . 4 5 3 . . . Ballistic Cannon 5 | . . . 6 3 2 10 10 10 11 12 9 12 Peak Build Rating 147 | 6 12 25 46 81 105 110 111 112 120 134 138 147 Average Rating 71 | 4 10 21 37 53 88 104 106 109 117 130 135 140 On Entrance 73 | . 6 12 23 36 66 102 105 109 112 114 134 138 Naked Turns . | . . . . . . . . . . . . . Heaviest Build 120 | 9 17 33 40 46 62 68 65 69 86 100 100 120 Greatest Support 120 | 20 20 45 41 66 66 33 33 33 33 38 120 120 Greatest Overweight (x) 3 | . . 3 3 . 1 2 1 2 2 3 2 1 Average Overweight (x) . | . . . . . . 1 1 1 2 2 1 . Largest Inventory Capacity 1 | 1 1 1 1 1 1 1 1 1 1 1 1 1 Average Capacity 1 | 1 1 1 1 1 1 1 1 1 1 1 1 1 Most Carried 1 | . 1 1 1 1 1 1 1 1 1 1 1 1 Average Carried . | . . . . . . 1 . . . . . 1 Final Capacity 1 | 1 1 1 1 1 1 1 1 1 1 1 1 1 Final Carried 1 | . 1 1 . . 1 1 . . . . 1 1 Scrap Engine Consumption 131 | . . . 27 40 23 7 3 . 7 11 9 4 Constructs Created 9 | . . . 3 3 1 1 . . . 1 . . Constructs Modified 44 | . . . 3 10 14 3 2 . 3 3 4 2 Class Distribution -------------------- 32% | Construct 19% | Scavenger-Gunner 14% | Generator-Construct 12% | Commander-Gunner 10% | Gunner 7% | Commander-Construct Dominant Class ---------------- Gunner | -10/Materials Scavenger-Gunner | -10/Subcaves Commander-Gunner | -8/Recycling Construct | -6/Factory Construct | -5/Factory Construct | -5/Upper Caves Construct | -5/Upper Caves Construct | -5/Zhirov Construct | -4/Proximity Caves Generator-Construct | -4/Factory Commander-Construct | -4/Extension Generator-Construct | -4/Cetus Resources | -11 -10 -10 -8 -6 -5 -5 -5 -5 -4 -4 -4 -4 ----------- Run | Yrd Mat Sub Rec Fac Fac Upp Upp Zhi Pro Fac Ext Cet Matter Collected 7160 | 260 224 250 214 783 1043 424 412 52 503 853 1746 396 Remotely 4679 | . . . . . 328 424 412 52 503 853 1711 396 Salvage Created 12102 | . 680 799 314 1908 1260 541 738 52 389 1504 3091 826 Parts 666 | . 37 70 12 107 71 34 41 4 46 77 129 38 Haulers Intercepted 1 | . . . . 1 . . . . . . . . Recyclers Shooed 5 | . 1 . . 1 1 . . . . 2 . . Parts Field Recycled . | . . . . . . . . . . . . . Retrieved Matter . | . . . . . . . . . . . . . Parts Self-Destructed 134 | . . 16 . . . 33 39 2 44 . . . Prevented 5 | . . 1 . . . 1 . . 3 . . . Kills | -11 -10 -10 -8 -6 -5 -5 -5 -5 -4 -4 -4 -4 ------- Run | Yrd Mat Sub Rec Fac Fac Upp Upp Zhi Pro Fac Ext Cet Combat Hostiles Destroyed 282 | . 12 23 2 33 36 24 18 . 22 32 65 15 Melee 1 | . . . . . 1 . . . . . . . Guns 56 | . 7 16 2 18 9 . 1 . 3 . . . Cannons 207 | . 3 4 . 15 26 23 12 . 18 27 64 15 AOE 13 | . 2 3 . . . . 3 . . 5 . . Classes Destroyed 25 | . 5 3 1 7 1 1 1 . 1 2 2 1 Worker 8 | . 1 . . 2 2 . . . . 3 . . Builder 8 | . . . . 4 1 . . . . 1 2 . Hauler 1 | . . . . 1 . . . . . . . . Recycler 5 | . 2 . 1 . . . . . . 2 . . Carrier 1 | . . . . . . . . . . . . 1 Minesweeper 1 | . . . . . . 1 . . . . . . Mechanic 3 | . . . . . . . . . . . 2 1 Operator 5 | . 1 . . . 3 . . . . . 1 . Drone 1 | . . . . . . . . . 1 . . . Turret 2 | . . 2 . . . . . . . . . . Watcher 10 | . 3 . . 2 2 . . . . 2 1 . Swarmer 52 | . . 7 . 1 9 15 3 . 12 5 . . Saboteur 4 | . . . . . . . . . . 1 2 1 Grunt 113 | . 12 . . 20 13 5 9 . 5 14 30 5 Brawler 6 | . . . . 2 2 . . . . . 2 . Duelist 12 | . . . . . 1 . 2 . . 1 6 2 Protector 2 | . . . . . . . . . . 1 1 . Sentry 23 | . . . . 2 4 2 . . 2 . 13 . Demolisher 1 | . . . . . . . . . . . 1 . Hunter 19 | . . . . 4 1 2 1 . 2 2 4 3 Programmer 24 | . . . . 3 6 . 2 . . 8 5 . Heavy 1 | . . . . 1 . . . . . . . . Behemoth 2 | . . . . . . . 1 . . . 1 . Cetus Guard 4 | . . . . . . . . . . . . 4 Subdweller 16 | . . 16 . . . . . . . . . . Scrapper 2 | . . . 2 . . . . . . . . . Thug 1 | . . . . . . . . . . . 1 . Guerrilla 1 | . . . . . . . . . . . 1 . Best Kill Streak 24 | . 3 5 1 6 5 9 7 . 7 10 24 13 Combat Bots Only 23 | . 3 5 1 6 5 9 7 . 7 9 23 11 Max Kills in Single Turn 3 | . 3 2 1 3 2 2 3 . 1 3 2 2 Gunslinging 1 | . . . . 1 . . . . . . . . Exploded 3 | . 1 2 . . . . 3 . . 3 . . Melee 1 | . . . . . 1 . . . . . . . Uniques/NPCs Destroyed . | . . . . . . . . . . . . . Combat | -11 -10 -10 -8 -6 -5 -5 -5 -5 -4 -4 -4 -4 -------- Run | Yrd Mat Sub Rec Fac Fac Upp Upp Zhi Pro Fac Ext Cet Hostile Shots Fired 1569 | . 19 160 9 291 103 67 46 . 82 219 386 187 Missed 546 | . 6 51 . 103 37 29 16 . 20 76 145 63 Hits 1023 | . 13 109 9 188 66 38 30 . 62 143 241 124 Melee 2 | . . . . . . . . . . . 1 1 Projectile 1021 | . 13 109 9 188 66 38 30 . 62 143 240 123 AOE 18 | . . 7 . . . . . . . 1 10 . Critical Strikes 63 | . . 4 2 6 3 1 5 . 2 13 17 10 Damage Taken 15405 | . 230 2293 194 3041 1224 599 584 . 1026 2206 2551 1457 Core 11213 | . 174 1636 114 2309 1000 469 472 . 717 1541 1736 1045 Absorbed by Shields 4197 | . . . 10 36 . . . . . 880 2342 929 Redirected to Core 9602 | . 103 1282 89 1848 806 457 418 . 705 1389 1541 964 Ignored by Resistances 501 | . . 61 . . . . . . . 18 267 155 Regen/Repaired (Parts) 626 | . . . 5 97 197 83 41 . 6 62 3 132 Core Remaining (%) 85 | 100 . . 100 45 . . . . 97 . . . Volleys Fired 637 | . 26 107 16 99 73 33 29 3 28 66 133 24 Largest 4 | . 3 3 3 3 3 3 4 3 4 4 3 3 Hottest 240 | . 140 190 187 156 155 167 200 167 211 240 240 240 Shots Fired 1744 | . 78 253 29 242 216 97 106 5 105 207 346 60 Gun 530 | . 65 218 22 110 71 . 21 . 23 . . . Cannon 1214 | . 13 35 7 132 145 97 85 5 82 207 346 60 Launcher . | . . . . . . . . . . . . . Special . | . . . . . . . . . . . . . Kinetic 940 | . 32 12 7 161 63 65 78 4 93 184 206 35 Thermal 519 | . 14 161 22 29 153 32 28 1 12 19 35 13 Explosive . | . . . . . . . . . . . . . Electromagnetic 285 | . 32 80 . 52 . . . . . 4 105 12 Robot Hit Streak 41 | . 7 36 8 13 22 21 14 4 11 15 41 20 Robot Miss Streak 6 | . 4 2 5 6 5 4 3 . 3 4 3 1 Penetration Max 1 | . . . . 1 1 1 1 1 1 1 1 . Secondary Targets 3 | . 1 1 . 1 . . . . . . . . Max Gunslinging Chain 1 | . 1 1 . 1 . . . . . . . . Shots Hit Robots 1133 | . 37 181 21 174 154 47 69 3 56 115 231 45 Core Hits 581 | . 23 44 15 97 109 29 35 1 29 62 113 24 Critical Kills 8 | . 1 . . . . 1 3 1 2 . . . Critical Parts Destroyed 10 | . . . . 2 . . 3 . 5 . . . Critical Strikes 36 | . 1 9 2 2 2 4 6 1 9 . . . Burn 5 | . . 3 2 . . . . . . . . . Meltdown 5 | . . . . . . 1 2 1 1 . . . Destroy 13 | . 1 . . 2 . . 4 . 6 . . . Blast 7 | . . . . . 2 3 . . 2 . . . Corrupt 6 | . . 6 . . . . . . . . . . Melee Attacks . | . . . . . . . . . . . . . Impact . | . . . . . . . . . . . . . Slashing . | . . . . . . . . . . . . . Piercing . | . . . . . . . . . . . . . Sneak Attacks . | . . . . . . . . . . . . . Combat Hostiles . | . . . . . . . . . . . . . Follow-up Attacks . | . . . . . . . . . . . . . Damage Inflicted 47079 | . 842 2992 467 5295 5862 2085 2724 274 2042 6659 14985 2852 Guns 7180 | . 479 2343 360 2014 1584 . 130 . 270 . . . Cannons 38271 | . 141 440 99 3240 4069 2068 2381 274 1772 6057 14878 2852 Explosions 1388 | . 209 209 . 40 171 . 213 . . 546 . . Melee . | . . . . . . . . . . . . . Ramming 240 | . 13 . 8 1 38 17 . . . 56 107 . Kinetic 27769 | . 181 197 99 3664 1765 1389 1822 239 1753 5168 9807 1685 Thermal 12376 | . 227 2144 360 673 4059 679 902 35 289 860 1404 744 Explosive 669 | . 123 . . . . . . . . 546 . . Electromagnetic 6025 | . 298 651 . 957 . . . . . 29 3667 423 Impact . | . . . . . . . . . . . . . Slashing . | . . . . . . . . . . . . . Piercing . | . . . . . . . . . . . . . Highest Corruption 13 | . 1 1 1 1 2 2 2 2 2 5 13 13 Average Corruption 2 | . 1 1 1 1 1 1 1 2 2 3 5 13 Corruption Purged 2 | . . . . . . 2 . . . . . . Corruption Blocked . | . . . . . . . . . . . . . Effects 176 | . 9 25 19 1 . . 9 2 22 20 61 8 Message Errors 45 | . 3 7 9 . . . 2 1 4 1 16 2 Matter Fused 45 | . 1 7 4 . . . 1 1 7 7 16 1 Heat Flow Errors 11 | . 1 2 2 . . . 1 . 2 2 1 . Energy Discharges 23 | . 1 2 1 . . . 1 . 4 3 9 2 Parts Rejected 3 | . . . . . . . . . . . 2 1 Data Loss (minor) 22 | . 2 3 1 1 . . 2 . 3 5 4 1 Data Loss (major) 10 | . . 3 . . . . 1 . 1 1 4 . Misfires 3 | . . . 2 . . . . . 1 . . . Alerts 3 | . 1 1 . . . . . . . . 1 . Misdirections 1 | . . . . . . . . . . . . 1 Weapon Failures 10 | . . . . . . . 1 . . 1 8 . Overload Shots . | . . . . . . . . . . . . . Overflow Damage 2103 | . . 18 . 25 97 79 133 131 113 641 724 142 Projectiles 2025 | . . . . 25 87 79 133 131 113 593 722 142 Explosions 76 | . . 18 . . 10 . . . . 48 . . Melee 2 | . . . . . . . . . . . 2 . Knockbacks 176 | . . . 3 21 12 2 12 . 4 38 80 4 Impact 3 | . . . . . . . . . . . 3 . Kinetic 138 | . . . 3 17 10 2 12 . 4 33 53 4 Secondary 35 | . . . . 4 2 . . . . 5 24 . Self-Inflicted Damage 103 | . 18 14 4 . . . . . . 67 . . Shots 3 | . 1 1 . . . . . . . 1 . . Rammed 13 | . . . 2 1 3 . . . . 3 4 . Targets Rammed 21 | . 4 . 2 1 5 1 . . . 3 5 . Kicked 4 | . 4 . . . . . . . . . . . Crushed 4 | . . . . . 2 1 . . . . 1 . Highest Temperature 709 | . 204 149 200 200 196 198 268 . 119 200 200 709 Average Temperature 86 | . 56 36 57 86 85 99 126 . 51 118 108 232 Received Heat Transfer 2940 | . 87 420 102 486 171 72 279 . 168 497 321 337 Effects 5 | . . . . . . . . . . . . 5 Interference 2 | . . . . . . . . . . . . 2 Matter Decay 1 | . . . . . . . . . . . . 1 Damage (minor) 1 | . . . . . . . . . . . . 1 Damage (major) 1 | . . . . . . . . . . . . 1 Siege Activations 1 | . . . . . . . . . . . 1 . Total Turns 9 | . . . . . . . . . . . 9 . Longest Duration 9 | . . . . . . . . . . . 9 . Martial Activations . | . . . . . . . . . . . . . Shielding Activations . | . . . . . . . . . . . . . Robots Disrupted 1 | . . . . . . . . . . . 1 . Combat Hostiles 1 | . . . . . . . . . . . 1 . Robots Corrupted 2 | . . . . . . . . . . . 2 . Combat Hostiles 1 | . . . . . . . . . . . 1 . Parts Fried 24 | . 2 1 . 3 . . . . 1 . 15 2 Impact Corruptions 3 | . . . . . 1 . . . . 1 1 . Robots Melted 5 | . . . . . . 1 2 1 1 . . . Combat Hostiles 5 | . . . . . . 1 2 1 1 . . . Parts Melted 21 | . 1 3 2 . 11 . 4 . . . . . Heat Transferred 11346 | . 446 3974 729 568 3576 740 980 37 296 . . . Parts Sabotaged 3 | . . . . . . . . . . . . 3 Parts Stolen . | . . . . . . . . . . . . . Parts Stripped . | . . . . . . . . . . . . . Power Chain Reactions 5 | . 2 2 . . 1 . . . . . . . Alert | -11 -10 -10 -8 -6 -5 -5 -5 -5 -4 -4 -4 -4 ------- Run | Yrd Mat Sub Rec Fac Fac Upp Upp Zhi Pro Fac Ext Cet Maximum Alert Level 5 | . . . 1 3 3 . . . . 3 5 5 Low Security (%) 46 | 100 100 . 96 . . . . . . 39 . . Level 1 10 | . . . 3 36 5 . . . . 3 23 . Level 2 21 | . . . . 42 62 . . . . 23 26 . Level 3 13 | . . . . 20 31 . . . . 34 12 . Level 4 2 | . . . . . . . . . . . 14 . Level 5 . | . . . . . . . . . . . . 20 High Security 5 | . . . . . . . . . . . 22 79 Max Security . | . . . . . . . . . . . . . Peak Influence 3202 | . 99 . 231 868 1031 . . . . 785 3202 2150 Initial 1792 | . . . 231 450 415 . . . . 50 378 1792 Average 423 | . 39 . 31 469 635 . . . . 406 1048 1867 Influence Increases 10830 | . 482 640 254 1648 1142 540 410 10 455 1091 3770 388 Destroy 0b10 Robot/C 6100 | . 240 180 40 720 720 480 360 . 420 620 2000 320 Destroy 0b10 Robot/NC 270 | . 35 . 20 45 40 5 . 10 5 45 60 5 Destroy Leader 866 | . 56 10 . 196 144 40 50 . 30 104 196 40 Allied During Kill 1129 | . . . 19 27 . . . . . . 1083 . Successful Hack 82 | . 16 . 16 . 43 . . . . . 7 . Select Force Hacks 210 | . 60 . 150 . . . . . . . . . Disable Machine 405 | . 45 . . 45 60 . . . . 150 90 15 Destroy Structure 523 | . 30 . 9 60 90 . . . . 172 154 8 Advance Influence 450 | . . . . 450 . . . . . . . . Partial Spotted 45 | . . . . 30 15 . . . . . . . Lose Combat Pursuer 750 | . . 450 . 75 30 15 . . . . 180 . Influence Decreases 8680 | . 450 189 737 800 963 821 607 559 374 400 1340 1440 Entered New Map 3609 | . . 16 252 . 433 381 143 549 . 31 394 1410 Time Decay 4347 | . 446 173 445 530 530 440 464 10 374 369 546 20 Search Patrol Dispatched 150 | . . . . 150 . . . . . . . . Lost Part 24 | . 4 . . 10 . . . . . . . 10 Lost Ally 550 | . . . 40 110 . . . . . . 400 . Squads Dispatched 61 | . 3 . . 16 9 . . . . 7 22 4 Investigation 5 | . 3 . . . . . . . . . 2 . Extermination 9 | . . . . 3 3 . . . . 3 . . Reinforcement 10 | . . . . 5 3 . . . . 1 1 . Assault 28 | . . . . 2 . . . . . 3 19 4 Garrison 9 | . . . . 6 3 . . . . . . . Intercept . | . . . . . . . . . . . . . Searches Triggered 1 | . . . . 1 . . . . . . . . Construction Impeded 3 | . . . . 1 1 . . . . . 1 . Haulers Reinforced 2 | . . . . 1 1 . . . . . . . Active Scanning Responses . | . . . . . . . . . . . . . Cargo Convoy Interrupts . | . . . . . . . . . . . . . Stealth | -11 -10 -10 -8 -6 -5 -5 -5 -5 -4 -4 -4 -4 --------- Run | Yrd Mat Sub Rec Fac Fac Upp Upp Zhi Pro Fac Ext Cet Distress Signals 12 | . 1 . . 4 . . . . . 1 5 1 Communications Jammed . | . . . . . . . . . . . . . Distress Signals . | . . . . . . . . . . . . . Times Spotted 459 | . 17 52 5 48 57 27 15 . 19 43 150 26 Peak Tracking Total 26 | . 3 10 4 6 6 6 4 . 6 9 26 15 Tactical Retreats 22 | . . 4 . 5 4 1 . . . . 8 . Traps | -11 -10 -10 -8 -6 -5 -5 -5 -5 -4 -4 -4 -4 ------- Run | Yrd Mat Sub Rec Fac Fac Upp Upp Zhi Pro Fac Ext Cet Traps Triggered 7 | . 1 1 . 2 1 . . . . . 2 . Indirectly . | . . . . . . . . . . . . . Trap Hack Attempts . | . . . . . . . . . . . . . Triggered . | . . . . . . . . . . . . . Disarmed . | . . . . . . . . . . . . . Reprogrammed . | . . . . . . . . . . . . . Reused . | . . . . . . . . . . . . . Traps Extracted . | . . . . . . . . . . . . . Installed . | . . . . . . . . . . . . . Triggered . | . . . . . . . . . . . . . Machines | -11 -10 -10 -8 -6 -5 -5 -5 -5 -4 -4 -4 -4 ---------- Run | Yrd Mat Sub Rec Fac Fac Upp Upp Zhi Pro Fac Ext Cet Machines Disabled 40 | . 3 1 . 3 4 2 4 1 1 10 9 2 Max in Single Turn 4 | . 1 1 . 2 2 1 2 1 1 4 1 1 Garrison Access 1 | . . . . . . . . . . 1 . . Machines Repaired . | . . . . . . . . . . . . . Machines Dismantled . | . . . . . . . . . . . . . Machines Sabotaged . | . . . . . . . . . . . . . Overloaded Fab Kills . | . . . . . . . . . . . . . Hacking | -11 -10 -10 -8 -6 -5 -5 -5 -5 -4 -4 -4 -4 --------- Run | Yrd Mat Sub Rec Fac Fac Upp Upp Zhi Pro Fac Ext Cet Machines Accessed 40 | . 8 1 12 2 6 1 . 4 . 1 5 . Terminals 26 | . 6 . 6 2 6 . . . . 1 5 . Fabricators . | . . . . . . . . . . . . . Repair Stations . | . . . . . . . . . . . . . Recycling Units 7 | . 2 . 5 . . . . . . . . . Scanalyzers . | . . . . . . . . . . . . . Garrison Access . | . . . . . . . . . . . . . Total Hacks 83 | . 18 5 29 2 6 1 . 10 . 2 10 . Successful 54 | . 10 5 23 . 3 1 . 10 . 1 1 . Failed 29 | . 8 . 6 2 3 . . . . 1 9 . Catastrophic 6 | . 2 . . . 3 . . . . . 1 . Database Lockouts . | . . . . . . . . . . . . . Manual 33 | . 12 . 13 2 3 . . . . . 3 . Terminals 50 | . 15 . 15 2 6 . . . . 2 10 . Fabricators . | . . . . . . . . . . . . . Repair Stations . | . . . . . . . . . . . . . Recycling Units 15 | . 3 . 12 . . . . . . . . . Scanalyzers . | . . . . . . . . . . . . . Garrison Access . | . . . . . . . . . . . . . Terminal Hacks 30 | . 4 5 6 . 2 1 . 10 . 1 1 . Record 8 | . . 5 . . 1 . . 2 . . . . Robot Analysis 4 | . . . . . . . . 4 . . . . Prototype ID Bank 9 | . 2 . 3 . . . . 4 . . . . Open Door 3 | . . . . . . 1 . . . 1 1 . Locate Traps 2 | . 1 . . . 1 . . . . . . . Hauler Manifests 1 | . 1 . . . . . . . . . . . Zone Layout 1 | . . . 1 . . . . . . . . . Release Object 2 | . . . 2 . . . . . . . . . Fabricator Hacks . | . . . . . . . . . . . . . Repair Station Hacks . | . . . . . . . . . . . . . Recycling Unit Hacks 6 | . . . 6 . . . . . . . . . Report Inventory 5 | . . . 5 . . . . . . . . . Retrieve Components 1 | . . . 1 . . . . . . . . . Scanalyzer . | . . . . . . . . . . . . . Garrison Access Hacks . | . . . . . . . . . . . . . Unauthorized Hacks 18 | . 6 . 11 . 1 . . . . . . . Terminals 11 | . 4 . 6 . 1 . . . . . . . Botnet 11 | . 4 . 6 . 1 . . . . . . . Fabricators . | . . . . . . . . . . . . . Repair Stations . | . . . . . . . . . . . . . Recycling Units 7 | . 2 . 5 . . . . . . . . . Tunnel 7 | . 2 . 5 . . . . . . . . . Scanalyzers . | . . . . . . . . . . . . . Garrison Access . | . . . . . . . . . . . . . Data Cores Recovered 5 | . 1 . . . 3 . . . . . 1 . Used 1 | . . . . . 1 . . . . . . . Hacking Detections 22 | . 4 . 7 2 5 . . . . . 4 . Full Trace Events 7 | . 1 . 4 . . . . . . . 2 . Feedback Events . | . . . . . . . . . . . . . Feedback Blocked . | . . . . . . . . . . . . . Robot Schematics Acquired . | . . . . . . . . . . . . . Robots Built . | . . . . . . . . . . . . . Authchips . | . . . . . . . . . . . . . Time . | . . . . . . . . . . . . . Total Robot Build Rating . | . . . . . . . . . . . . . Part Schematics Acquired . | . . . . . . . . . . . . . Parts Built . | . . . . . . . . . . . . . Authchips . | . . . . . . . . . . . . . Time . | . . . . . . . . . . . . . Total Part Build Rating . | . . . . . . . . . . . . . Parts Repaired . | . . . . . . . . . . . . . Time . | . . . . . . . . . . . . . Parts Recycled . | . . . . . . . . . . . . . Recycled Matter . | . . . . . . . . . . . . . Retrieved Matter . | . . . . . . . . . . . . . Retrieved Components 3 | . . . 3 . . . . . . . . . Parts Scanalyzed . | . . . . . . . . . . . . . Part Schematics Acquired . | . . . . . . . . . . . . . Parts Damaged . | . . . . . . . . . . . . . Bothacking | -11 -10 -10 -8 -6 -5 -5 -5 -5 -4 -4 -4 -4 ------------ Run | Yrd Mat Sub Rec Fac Fac Upp Upp Zhi Pro Fac Ext Cet Used RIF Installer . | . . . . . . . . . . . . . Robots Hacked . | . . . . . . . . . . . . . Non-combat . | . . . . . . . . . . . . . Combat . | . . . . . . . . . . . . . Robot Hacks Applied . | . . . . . . . . . . . . . Relay Couplers Released . | . . . . . . . . . . . . . Fabnet Peak Effective % . | . . . . . . . . . . . . . Robots Rewired 28 | . . . 8 . . . . . . . 20 . Allies Hacked . | . . . . . . . . . . . . . Hacks Repelled . | . . . . . . . . . . . . . Allies | -11 -10 -10 -8 -6 -5 -5 -5 -5 -4 -4 -4 -4 -------- Run | Yrd Mat Sub Rec Fac Fac Upp Upp Zhi Pro Fac Ext Cet Total Allies 33 | . . . 8 . . . . . . . 25 . Largest Group 10 | . . . 8 6 . . . . . . 10 . Highest-Rated Group 566 | . . . 152 102 . . . . . . 566 . Highest-Rated Ally 159 | . . . 34 27 . . . . . . 159 . Total Orders 2 | . . . 2 . . . . . . . . . STAY 1 | . . . 1 . . . . . . . . . FOLLOW 1 | . . . 1 . . . . . . . . . Ally Attacks 288 | . . . 16 19 . . . . . . 253 . Total Damage 7141 | . . . 297 194 . . . . . . 6650 . Kills 52 | . . . 5 3 . . . . . . 44 . Allies Corrupted 2 | . . . . 2 . . . . . . . . Allies Melted 1 | . . . . . . . . . . . 1 . Intel | -11 -10 -10 -8 -6 -5 -5 -5 -5 -4 -4 -4 -4 ------- Run | Yrd Mat Sub Rec Fac Fac Upp Upp Zhi Pro Fac Ext Cet Active Infowar (turns) 733 | . . 2 . 1 390 2 1 132 205 . . . A.S.S. 1 | . . . . 1 . . . . . . . . IFF 1 | . . . . . 1 . . . . . . . ECM 731 | . . 2 . . 389 2 1 132 205 . . . Robot Analysis Total 4 | . . . . . . . . 4 . . . . Derelict Logs Recovered 8 | . . 1 . . . 3 2 . 2 . . . Drone Launches . | . . . . . . . . . . . . . Drone Recoveries . | . . . . . . . . . . . . . Exploration | -11 -10 -10 -8 -6 -5 -5 -5 -5 -4 -4 -4 -4 ------------- Run | Yrd Mat Sub Rec Fac Fac Upp Upp Zhi Pro Fac Ext Cet Turns Passed 20018 | 113 1632 3971 3185 1498 1494 1088 1170 297 1683 1658 2019 210 Spaces Moved 14119 | 91 1198 2604 1728 1480 1469 1193 1027 219 1190 1089 762 69 Core 195 | 6 . 186 3 . . . . . . . . . Treads 8045 | . . . . 1253 1469 1193 1027 219 1190 1089 605 . Legs 1566 | 85 1198 59 224 . . . . . . . . . Wheels 4065 | . . 2359 1501 205 . . . . . . . . Hover 226 | . . . . . . . . . . . 157 69 Flight 22 | . . . . 22 . . . . . . . . Fastest Speed 50 | 50 120 110 80 65 65 80 80 116 131 131 131 193 Average Speed 108 | 115 120 123 101 72 75 81 102 121 131 131 164 193 Slowest Speed 260 | 120 120 260 200 116 80 95 116 131 131 146 219 208 Overloaded Moves . | . . . . . . . . . . . . . Propulsion Burnouts . | . . . . . . . . . . . . . Robots Hopped . | . . . . . . . . . . . . . Potential Cave-ins 8 | . . 5 . . . . . . . . 3 . Cave-ins Triggered . | . . . . . . . . . . . . . Exploration Rate (%) 63 | 4 94 85 96 31 37 96 84 62 96 20 77 39 Regions Visited 12 Branch Regions 8 Pre-discovered Areas 8 | . 2 . 5 . . 1 . . . . . . Known Exits Taken 7 | . . . . 1 . 1 1 1 1 1 1 . Unknown Exits Taken 5 | 1 1 1 1 . 1 . . . . . . . Scrap Searched 22 | . . 12 . . . 4 4 . 2 . . . Spaces Dug 20 | . . 7 . . . . . . 1 . 12 . Terrain Destroyed 425 | . 29 12 . 62 39 41 42 . 41 89 67 3 Melee . | . . . . . . . . . . . . . Projectile 303 | . . 7 . 42 36 41 25 . 41 41 67 3 AOE 122 | . 29 5 . 20 3 . 17 . . 48 . . Terrain Rammed . | . . . . . . . . . . . . . Walls Destroyed . | . . . . . . . . . . . . . Machines Disabled . | . . . . . . . . . . . . . Actions | -11 -10 -10 -8 -6 -5 -5 -5 -5 -4 -4 -4 -4 --------- Run | Yrd Mat Sub Rec Fac Fac Upp Upp Zhi Pro Fac Ext Cet Total 17752 | 96 1339 3158 3147 1730 1737 1261 1099 247 1271 1219 1339 109 Wait 1948 | . 82 326 1290 55 93 1 2 12 3 10 74 . Move 14107 | 90 1197 2603 1727 1479 1468 1192 1026 218 1189 1088 761 69 Hop . | . . . . . . . . . . . . . Pick Up 16 | . 1 4 1 4 2 . 1 . 1 1 1 . Fast Attach 72 | 6 9 13 14 7 7 . 3 3 2 2 2 4 Attach 13 | . . 2 1 4 3 . 1 1 1 . . . Detach 21 | . 2 . 3 6 5 . 1 1 2 1 . . Swap 10 | . . 3 . . 1 1 . . 2 3 . . Drop 65 | . 6 19 20 5 5 1 1 2 3 3 . . Fire 637 | . 26 107 16 99 73 33 29 3 28 66 133 24 Melee . | . . . . . . . . . . . . . Ram 2 | . . . 2 . . . . . . . . . Kick 4 | . 4 . . . . . . . . . . . Crush 15 | . . . . 1 5 1 . . . 3 5 . Escape Stasis 4 | . . . . . . . . . . . 4 . Rewire 301 | . . 2 56 . . . . . . 1 242 . Trap . | . . . . . . . . . . . . . Miscellaneous 537 | . 12 79 17 70 75 32 35 7 40 41 117 12 Route ------- -11/Scrapyard -10/Materials (discovered 5 exits: [*Mat x3] / [*Min] / *Sub) -10/Subcaves (discovered 3 exits: [*Mat x2] / *Rec) -8/Recycling -6/Factory (discovered 4 exits: *Fac x2 / [*Low x2]) -5/Factory (discovered 2 exits: *Fac / *Upp) -5/Upper Caves -5/Upper Caves (discovered 2 exits: *Fac / *Zhi) -5/Zhirov -4/Proximity Caves -4/Factory -4/Extension (discovered 2 exits: [*Res] / *Cet) -4/Cetus History --------- Turn | Location | Event 1 | -11/Scrapyard | Upgraded with Propulsion slot (x1) 1 | -11/Scrapyard | Upgraded with Weapon slot (x2) 4 | -11/Scrapyard | Discovered new exit (range 16) 114 | -11/Scrapyard | Entered Materials 289 | -10/Materials | Discovered new exit (range 7) 305 | -10/Materials | Build established: Gunner 764 | -10/Materials | Discovered new exit (range 4) 841 | -10/Materials | Discovered new exit (range 14) 921 | -10/Materials | Discovered new exit (range 15) 1302 | -10/Materials | Reached level 2 1404 | -10/Materials | Upgraded with Utility slot (x1) 1481 | -10/Materials | Discovered new exit (range 11) 1746 | -10/Materials | Entered Subcaves 1747 | -10/Subcaves | Approached by a straggling Scientist 1935 | -10/Subcaves | Ambushed by swarm of Subdwellers 1937 | -10/Subcaves | Ambushed by Subdwellers from Twisted Machinery 1950 | -10/Subcaves | Core integrity fell below 50% 1957 | -10/Subcaves | Core integrity fell below 20% 2075 | -10/Subcaves | Discovered new exit (range 10) 2124 | -10/Subcaves | Shifting Twisted Machinery released Shrapnel Trap 2292 | -10/Subcaves | Discovered new exit (range 14) 2336 | -10/Subcaves | Build established: Scavenger-Gunner 2371 | -10/Subcaves | Shifting Twisted Machinery released Shrapnel Trap 2423 | -10/Subcaves | Disturbed a concealed Subdweller 2547 | -10/Subcaves | A swath of the cavern ceiling suddenly collapsed 3221 | -10/Subcaves | Shifting Twisted Machinery released Shrapnel Trap 3626 | -10/Subcaves | Reached level 3 3661 | -10/Subcaves | Discovered new exit (range 13) 3729 | -10/Subcaves | Shifting Twisted Machinery released Sub. Shrapnel Launcher 3732 | -10/Subcaves | Shifting Twisted Machinery released Sub. Optics 3746 | -10/Subcaves | Learned Materials emergency access door positions 3838 | -10/Subcaves | A swath of the cavern ceiling suddenly collapsed 4288 | -10/Subcaves | Ambushed by Subdwellers from Twisted Machinery 4357 | -10/Subcaves | Visited Clippyterm 4361 | -10/Subcaves | Learned Factory garrison access intel 4361 | -10/Subcaves | Learned 40 Factory zone layouts 5180 | -10/Subcaves | Shifting Twisted Machinery released Sub. Beam Cannon 5717 | -10/Subcaves | Entered Recycling 5719 | -8/Recycling | Reached level 4 5959 | -8/Recycling | Discovered new exit (range 4) 6321 | -8/Recycling | Build established: Commander-Gunner 6355 | -8/Recycling | Upgraded with Propulsion slot (x1) 6403 | -8/Recycling | Upgraded with Utility slot (x1) 6518 | -8/Recycling | Scanned before Scraplab entrance 6629 | -8/Recycling | Reached level 5 6704 | -8/Recycling | Angered Scraplab inhabitants 6835 | -8/Recycling | Found Prototype Device 6835 | -8/Recycling | Identified Scrap Engine 8850 | -8/Recycling | Build established: Commander-Construct 8902 | -8/Recycling | Entered Factory 8902 | -6/Factory | Accompanied by 6 allies 8903 | -6/Factory | Identified exit to Factory 8904 | -6/Factory | Loaded intel: 4 garrison access locations 8904 | -6/Factory | Reached level 6 9013 | -6/Factory | Garrison activated, responded to threat 9067 | -6/Factory | Lost 5 allies 9227 | -6/Factory | Upgraded with Power slot (x1) 9227 | -6/Factory | Upgraded with Propulsion slot (x1) 9227 | -6/Factory | Upgraded with Utility slot (x1) 9227 | -6/Factory | Upgraded with Weapon slot (x1) 9252 | -6/Factory | Search patrols dispatched 9333 | -6/Factory | Discovered new exit (range 8) 9339 | -6/Factory | Build established: Construct 9565 | -6/Factory | Reached level 7 9574 | -6/Factory | Upgraded with Utility slot (x1) 9655 | -6/Factory | Discovered new exit (range 6) 9743 | -6/Factory | Garrison activated, responded to threat 9936 | -6/Factory | Reached level 8 10043 | -6/Factory | Core integrity fell below 50% 10090 | -6/Factory | Core integrity fell below 20% 10134 | -6/Factory | Reached level 9 10207 | -6/Factory | Upgraded with Utility slot (x1) 10213 | -6/Factory | Found Prototype Device 10213 | -6/Factory | Identified Active Sensor Suite 10302 | -6/Factory | First assault squad dispatched 10400 | -6/Factory | Entered another Factory area 10401 | -5/Factory | Core integrity fell below 50% 10402 | -5/Factory | Reached level 10 10514 | -5/Factory | Discovered new exit (range 12) 10717 | -5/Factory | Reached level 11 10765 | -5/Factory | Garrison activated, responded to threat 11026 | -5/Factory | Upgraded with Propulsion slot (x1) 11311 | -5/Factory | Reached level 12 11345 | -5/Factory | Upgraded with Power slot (x1) 11568 | -5/Factory | Reached level 13 11626 | -5/Factory | Upgraded with Utility slot (x1) 11713 | -5/Factory | Discovered new exit (range 6) 11894 | -5/Factory | Entered Upper Caves 11896 | -5/Upper Caves | Reached level 14 11896 | -5/Upper Caves | Upgraded with Weapon slot (x1) 12215 | -5/Upper Caves | Identified exit to Upper Caves 12301 | -5/Upper Caves | Reached level 15 12351 | -5/Upper Caves | Destroyed 9 combat bots 12759 | -5/Upper Caves | Learned location of Armory (-3) 12982 | -5/Upper Caves | Entered another Upper Caves area 12984 | -5/Upper Caves | Reached level 16 12995 | -5/Upper Caves | Discovered new exit (range 15) 13010 | -5/Upper Caves | Attracted the attention of an 0b10 base 13057 | -5/Upper Caves | Destroyed 7 combat bots 13074 | -5/Upper Caves | Learned Factory terminal intel 13412 | -5/Upper Caves | Learned Factory interactive machine intel 13462 | -5/Upper Caves | Reached level 17 13567 | -5/Upper Caves | Spotted B-75 Beast 13573 | -5/Upper Caves | Destroyed B-75 Beast 13593 | -5/Upper Caves | Discovered new exit (range 17) 13638 | -5/Upper Caves | Identified exit to Zhirov 14152 | -5/Upper Caves | Entered Zhirov 14152 | -5/Zhirov | Discovered new exit (range 3) 14270 | -5/Zhirov | Found Alien Artifact 14270 | -5/Zhirov | Identified Integrated Dissipator 14270 | -5/Zhirov | Installed Integrated Dissipator, increased core heat dissipation (+20) 14448 | -5/Zhirov | Identified exit to Proximity Caves 14449 | -5/Zhirov | Entered Proximity Caves 14451 | -4/Proximity Caves | Reached level 18 14647 | -4/Proximity Caves | Encountered a Derelict sapper outpost 14656 | -4/Proximity Caves | Upgraded with Utility slot (x1) 14944 | -4/Proximity Caves | Build established: Derelict-Construct 15000 | -4/Proximity Caves | Reached level 19 15029 | -4/Proximity Caves | Destroyed 7 combat bots 15089 | -4/Proximity Caves | Learned 8 Research zone layouts 15333 | -4/Proximity Caves | Discovered new exit (range 12) 15507 | -4/Proximity Caves | Build established: Construct 15617 | -4/Proximity Caves | Attracted the attention of an 0b10 checkpoint 15626 | -4/Proximity Caves | Reached level 20 16131 | -4/Proximity Caves | Identified exit to Factory 16132 | -4/Proximity Caves | Entered Factory 16133 | -4/Factory | Loaded intel: 56 interactive machine locations 16134 | -4/Factory | Loaded intel: 28 terminal locations 16134 | -4/Factory | Reached level 21 16171 | -4/Factory | Upgraded with Power slot (x1) 16171 | -4/Factory | Upgraded with Utility slot (x1) 16471 | -4/Factory | Build established: Generator-Construct 16620 | -4/Factory | Discovered new exit (range 5) 16623 | -4/Factory | Identified exit to Extension 16790 | -4/Factory | Reached level 22 16818 | -4/Factory | Destroyed 9 combat bots 16943 | -4/Factory | Destroyed 7 combat bots 16975 | -4/Factory | Reached level 23 16980 | -4/Factory | Core integrity fell below 50% 17017 | -4/Factory | Destroyed 8 combat bots 17632 | -4/Factory | First assault squad dispatched 17790 | -4/Factory | Entered Extension 17792 | -4/Extension | Reached level 24 17993 | -4/Extension | Lost 3 allies 18350 | -4/Extension | Rescued a captive Derelict 18352 | -4/Extension | Rescued a captive Derelict 18472 | -4/Extension | Upgraded with Weapon slot (x1) 18540 | -4/Extension | Spotted B-86 Titan 18560 | -4/Extension | Spotted B-86 Titan 18570 | -4/Extension | Reached level 25 18570 | -4/Extension | Destroyed B-86 Titan 18580 | -4/Extension | Allies destroyed B-86 Titan 18729 | -4/Extension | Build established: Commander-Construct 18790 | -4/Extension | First assault squad dispatched 18904 | -4/Extension | Rescued A7 18930 | -4/Extension | Rescued a captive Derelict 18983 | -4/Extension | Rescued a captive Derelict 19116 | -4/Extension | Reached level 26 19171 | -4/Extension | Lost 7 allies 19244 | -4/Extension | Rescued a captive Derelict 19356 | -4/Extension | High security lockdown imminent 19436 | -4/Extension | High security lockdown engaged 19502 | -4/Extension | Reached level 27 19535 | -4/Extension | Lost 8 allies 19644 | -4/Extension | Destroyed 13 combat bots 19662 | -4/Extension | Discovered new exit (range 10) 19669 | -4/Extension | Discovered new exit (range 6) 19707 | -4/Extension | Extracted ID and sensor layout for unrecognized location from A7's data core 19715 | -4/Extension | System corruption reached 10% 19790 | -4/Extension | Build established: Generator-Construct 19807 | -4/Extension | Identified exit to Cetus 19809 | -4/Extension | Entered Cetus 19814 | -4/Cetus | Destroyed 23 combat bots 19833 | -4/Cetus | Spotted Cetus Guard 19834 | -4/Cetus | Spotted Cetus Guard 19836 | -4/Cetus | Spotted Cetus Guard 19837 | -4/Cetus | Spotted Cetus Guard 19839 | -4/Cetus | Destroyed Cetus Guard 19844 | -4/Cetus | Destroyed Cetus Guard 19853 | -4/Cetus | High security lockdown imminent 19853 | -4/Cetus | Destroyed Cetus Guard 19862 | -4/Cetus | Destroyed Cetus Guard 19933 | -4/Cetus | High security lockdown engaged 19979 | -4/Cetus | Cetus Manufacturing Module disabled 20012 | -4/Cetus | Core integrity fell below 20% 20019 | -4/Cetus | Destroyed by G-67 Veteran with Plasma Rifle Last Messages --------------- 20012_ H-77 Assassin destroyed. 20012_ Machine disabled. 20013_ Acquired 14 matter. 20013_ Overheating: Adv. Signal Interpreter damaged (-15). 20014_ Power failure averted by Adv. Cryofiber Web. 20015_ Overheating: Matter decay (-52). 20015_ G-67 Veteran destroyed. 20015_ Slug penetrates Reinforced Barrier. 20015_ M-36 Artificer repairs G-73 Enforcer. 20016_ Acquired 66 matter. 20017_ Overheating: System interference. 20017_ Adv. Signal Interpreter temporarily disabled. 20017_ Imp. Force Field temporarily disabled. 20017_ System interference averted by Adv. Cryofiber Web. 20017_ Destroyed Adv. Heat Sink. 20017_ G-73 Enforcer destroyed. 20018_ Acquired 14 matter. 20018_ Power failure averted by Adv. Cryofiber Web. 20019_ Internal heat damage averted by Adv. Cryofiber Web. 20019_ Overheating: Imp. Force Field damaged (-18). Map ----- +----------------------------------------------------+ | ?????????????????????????????????????????????????? | | ?????????????????????????????????????????????????? | | ?????????????????????????????????????????????????? | | ?????????????????????????????????????????????????? | | ?????????????????????????????????????????????????? | | ?????????????????????????????????????????????????? | | ?????????????????????????????????????????????????? | | ?????????????????????????????????????????????????? | | ?????? ????????????????????????????????????????? | | ?????# #???????????????????????????????????????? | | ?????# #???????????????????????????????????????? | | ?????# #???????????????????????????????????????? | | ?????# #???????????????????????????????????????? | | ?????# #???????????????????????????????????????? | | ?????# #???????????????????????????????????????? | | ?????# #???????????????????????????????????????? | | ?????# #??????????##?#############?????????????? | | ?????# #??????????#""""" """ """"??????????????? | | ?????# #??????????# " """"""" " #????????????? | | ?????# #??????????#"""""""""""""""#????????????? | | ?????# #??????????#""""" """ """""#????????????? | | ?????# #??????????#""""""" """""""#????????????? | | ?????# #??????????#""" " """#????""??????? | | ##???# #????#####?#"["""[ """ "#" ""#?????? | | "##### ###### ###g*%*== [/g[ ! #?????? | | !! % =%/m%=%@%%/ %%=!%g %%% + ? | | w =/![[*!%! *g%! =% + ? | | ! *%=%[[ [ + ? | | ####"####;##### #;#=%= ####??? | | #??###??###?# ;####?#"[!"" """"""""#T #?????? | | ????????????????????######+;###########??""#?????? | | ??????????????????????????? ????????????????????? | | ??????????????????????????? ????????????????????? | | ??????????????????????????? ???????????????????? | | ???????????????????????????? "???????????????????? | | ???????????????????????????? "#??????????????????? | | ????????????????????????????"""??????????????????? | | ?????????????????????????????""??????????????????? | | ?????????????????????????????"???????????????????? | | ?????????????????????????????????????????????????? | | ?????????????????????????????????????????????????? | | ?????????????????????????????????????????????????? | | ?????????????????????????????????????????????????? | | ?????????????????????????????????????????????????? | | ?????????????????????????????????????????????????? | | ?????????????????????????????????????????????????? | | ?????????????????????????????????????????????????? | | ?????????????????????????????????????????????????? | | ?????????????????????????????????????????????????? | | ?????????????????????????????????????????????????? | +----------------------------------------------------+ Best States ------------- Heat Dissipation 93 Coolant Potential 100 Energy Generation 94 Energy Capacity 1590 Matter Stores 350 Matter Capacity 350 Sight Range 20 Robot Scan Range 26 Terrain Scan Density 10 ECM Strength 2 Base Temperature (-) 200 Armor Coverage 900 Resistance: KI 15 Weapon Cycling 20 Evasion (%) 57 Recoil Reduction 4 Item Schematics ----------------- None Robot Schematics ------------------ None Fabricated ------------ Nothing Repaired ---------- Nothing Alien Tech Used ----------------- Integrated Dissipator Achievements -------------- Fist Fight Universal Adapter Challenges ------------ None RPGLIKE | -11 -10 -10 -8 -6 -5 -5 -5 -5 -4 -4 -4 -4 --------- Run | Yrd Mat Sub Rec Fac Fac Upp Upp Zhi Pro Fac Ext Cet Levels Raised 26 | . 1 1 2 4 4 2 2 . 3 3 4 . XP Earned 43327 | 3000 1975 1950 2105 6597 6601 3100 2550 500 3250 5564 5639 496 XP Spent 41985 | 2950 500 1010 1600 8580 5500 3700 1575 . 2500 7725 5700 645 Upgrades 84 | 6 1 14 2 16 5 11 8 . 2 10 6 3 Power Slot 3 | . . . . 1 1 . . . . 1 . . Propulsion Slot 4 | 1 . . 1 1 1 . . . . . . . Utility Slot 8 | . 1 . 1 3 1 . . . 1 1 . . Weapon Slot 5 | 2 . . . 1 . 1 . . . . 1 . Core Integrity 21 | . . 10 . 8 . . . . . . . 3 Heat Dissipation 8 | . . 3 . . . . 5 . . . . . Energy Generation 5 | . . . . . . . . . . . 5 . Matter Storage 1 | . . . . . . . . . 1 . . . Mass Support 2 | . . 1 . . . . . . . 1 . . Inventory Capacity 1 | 1 . . . . . . . . . . . . Sight Range 4 | . . . . 2 . 2 . . . . . . Sensor Range 13 | . . . . . . 8 3 . . 2 . . Ranged Accuracy 6 | 2 . . . . 2 . . . . 2 . . KI Resistance % 3 | . . . . . . . . . . 3 . . Protomatter Created 5410 | . 195 402 94 567 635 229 296 219 373 517 1592 291 Integrity Restored 11394 | . 204 1622 369 1584 1616 600 768 153 787 891 2527 273 Core 9562 | . 166 1512 246 1493 1460 600 680 17 682 891 1542 273 Parts 1832 | . 38 110 123 91 156 . 88 136 105 . 985 . Protomatter Decayed 1727 | . 118 109 . 172 21 29 38 166 30 178 807 59 Game ------ Seed HoverFieldthrustTerminator Manual? 0 Play Time 04:01:35 Cumulative 107.8 hours Start 2025.05.18 @ 23:01:21 End 2025.05.19 @ 03:19:14 Sessions 1 Manual Loads 0 Difficulty Rogue Special Mode Winter2019/RPGLIKE Game No. 48 Rogue 44 Adventurer 4 Explorer 0 Win Type - Total 1 Types 1/0/0/0/0/0/0/0/0/0 Lore% 54 Gallery% 44 Achievement% 49 Wizard Run 0 Options --------- Layout 0 ASCII 0 Keyboard 0 Movement Arrows Keybinds 0 Fullscreen 2 Font 32/SmallcapsGlow Map View 88x55 Zoom Use 0% Tactical HUD 1 Map Filters NONE Filters NONE Steam 1 RUN: 53f8b401-88ff-4b3c-a59f-4b6326ba4529